fUST/lending_fUST_20240127
["ID","MTS","AMOUNT","RATE_DAILY","PERIOD"]
[312807592,1706284829151,1600.0,0.00021125,2]
[312807594,1706284839362,978.2579722,0.00019909,2]
[312807595,1706284855348,979.5723653,0.00019909,2]
[312807612,1706284866418,159.3572171,0.0002162,2]
[312807620,1706284903064,2992.7707043,0.00021103,2]
[312807622,1706284922037,1759.717894,0.00021097,2]
[312807623,1706284926517,270.6612929,0.00021094,2]
[312807624,1706284955585,3290.174459,0.00021082,2]
[312807641,1706284988523,172.614767,0.00021918,2]
[312807643,1706285023126,241271.89630157,0.00021082,2]
[312807649,1706285085968,520.27104176,0.00021925,2]
[312807650,1706285086872,250.0,0.00021026,2]
[312807652,1706285112380,24087.45,0.00022003,3]
[312807653,1706285117293,560.06207122,0.0001981,2]
[312807654,1706285121027,300.0,0.00021082,2]
[312807655,1706285122817,1827.38712364,0.00021082,2]
[312807656,1706285123927,154.98450155,0.00022009,2]
[312807657,1706285124061,20072.87,0.00022002,3]
[312807658,1706285124838,20911.81082028,0.00022009,2]
[312807659,1706285125307,154.98450155,0.00022009,2]
[312807660,1706285127085,156.12493108,0.00022009,2]
[312807661,1706285127214,154.98450155,0.00022009,2]
[312807662,1706285127250,179.01727218,0.00022009,2]
[312807663,1706285127385,199.34410144,0.00022009,2]
[312807664,1706285128385,329.74860932,0.00022009,2]
[312807665,1706285128637,1026.83362731,0.00022009,2]
[312807666,1706285130417,1485.05811791,0.00022009,2]
[312807667,1706285130891,426.28921801,0.00022009,2]
[312807668,1706285131316,8766.90246597,0.00022009,2]
[312807669,1706285131975,2035.76851465,0.00022009,2]
[312807670,1706285132956,1254.26473598,0.00022009,2]
[312807671,1706285133797,154.98450155,0.00022009,2]
[312807672,1706285134518,16727.39,0.00022002,3]
[312807673,1706285135882,1243.18794346,0.00022009,2]
[312807674,1706285136063,81243.27651671,0.00022009,2]
[312807675,1706285136353,154.98450155,0.00022009,2]
[312807676,1706285138119,161.1289327,0.00022009,2]
[312807677,1706285138894,261.2804971,0.00022009,2]
[312807678,1706285139371,199.34410144,0.00022009,2]
[312807679,1706285140547,167.10938198,0.00022009,2]
[312807680,1706285140795,237.83279174,0.00022009,2]
[312807681,1706285140835,1994.67280692,0.00022009,2]
[312807682,1706285140867,20911.81082028,0.00022009,2]
[312807683,1706285141160,156.12493108,0.00022009,2]
[312807684,1706285141308,309.7861973,0.00022009,2]
[312807685,1706285141337,1198.85411505,0.00022009,2]
[312807686,1706285141442,2003.83335234,0.00022009,2]
[312807687,1706285141473,154.98450155,0.00022009,2]
[312807688,1706285141926,154.98450155,0.00022009,2]
[312807689,1706285142306,21697.17964081,0.00022009,2]
[312807690,1706285142483,2040.23895933,0.00022009,2]
[312807691,1706285142645,1026.21721543,0.00022009,2]
[312807692,1706285143216,179.01727218,0.00022009,2]
[312807693,1706285144169,4816.50378682,0.00022009,2]
[312807694,1706285145438,13939.49,0.00022002,3]
[312807696,1706285146445,19877.61940859,0.00022009,2]
[312807697,1706285147279,154.98450155,0.00022009,2]
[312807698,1706285147316,453.07430926,0.00022009,2]
[312807699,1706285147349,154.98450155,0.00022009,2]
[312807700,1706285147605,1267.59443722,0.00022009,2]
[312807701,1706285148741,1254.26473598,0.00022009,2]
[312807702,1706285148882,186.2296923,0.00022009,2]
[312807703,1706285149483,2032.35831755,0.00022009,2]
[312807704,1706285150316,625.15059201,0.00022009,2]
[312807705,1706285150381,329.74860932,0.00022009,2]
[312807706,1706285151307,8766.90246597,0.00022009,2]
[312807707,1706285151793,154.98450155,0.00022009,2]
[312807708,1706285152027,154.98450155,0.00022009,2]
[312807709,1706285152388,154.98450155,0.00022009,2]
[312807710,1706285154493,2038.20154524,0.00022009,2]
[312807711,1706285154858,261.2804971,0.00022009,2]
[312807712,1706285155437,527.01508147,0.00022009,2]
[312807713,1706285155501,276.9778096,0.00022009,2]
[312807714,1706285155880,1243.18794346,0.00022009,2]
[312807715,1706285156120,161.1289327,0.00022009,2]
[312807716,1706285156241,154.98450155,0.00022009,2]
[312807718,1706285156572,167.10938198,0.00022009,2]
[312807719,1706285156826,1994.67280692,0.00022009,2]
[312807720,1706285157424,11616.25,0.00022002,3]
[312807721,1706285157883,3747.87536289,0.00022009,2]
[312807722,1706285158090,81243.27651671,0.00022009,2]
[312807724,1706285158785,237.65028152,0.00022009,2]
[312807725,1706285158838,20911.81082028,0.00022009,2]
[312807726,1706285159369,199.34410144,0.00022009,2]
[312807728,1706285160704,213.55190572,0.00022009,2]
[312807729,1706285161279,3487.69891167,0.00022009,2]
[312807731,1706285161433,154.98450155,0.00022009,2]
[312807732,1706285162339,21697.17964081,0.0002179,2]
[312807733,1706285163332,36986.4770049,0.00022009,2]
[312807734,1706285165941,154.98450155,0.00022009,2]
[312807735,1706285166170,4813.94290014,0.00022009,2]
[312807736,1706285166204,19712.13660076,0.00022009,2]
[312807737,1706285166239,175.31396286,0.00022009,2]
[312807738,1706285168503,9680.2,0.00022001,3]
[312807739,1706285168713,154.98450155,0.00022009,2]
[312807740,1706285169034,522.41614365,0.00022009,2]
[312807741,1706285170274,155.14142334,0.00022009,2]
[312807742,1706285170386,1742.02717057,0.00022009,2]
[312807743,1706285170867,154.98450155,0.00022009,2]
[312807744,1706285171515,7965.10067001,0.00022009,2]
[312807745,1706285171822,154.98450155,0.00022009,2]
[312807746,1706285173324,181.08904402,0.00022009,2]
[312807747,1706285173388,904.20873701,0.00022009,2]
[312807748,1706285173890,3744.12808878,0.00022009,2]
[312807749,1706285173929,1218.54809503,0.00022009,2]
[312807751,1706285174877,242.99598108,0.00022009,2]
[312807752,1706285175285,3484.68752728,0.00021569,2]
[312807753,1706285175907,1294.44989575,0.00022009,2]
[312807754,1706285176074,53162.15475368,0.00022009,2]
[312807756,1706285176713,213.32114646,0.00022009,2]
[312807757,1706285176848,1994.67280692,0.00022009,2]
[312807758,1706285176891,20911.81082028,0.00022009,2]
[312807759,1706285177373,199.34410144,0.00022009,2]
[312807761,1706285178279,160.59992633,0.00022009,2]
[312807762,1706285178929,500.08784332,0.00022009,2]
[312807763,1706285179169,18914.66367952,0.00022009,2]
[312807764,1706285179219,36986.4770049,0.00022009,2]
[312807765,1706285179686,8066.84,0.00022,3]
[312807766,1706285180860,154.98450155,0.00022009,2]
[312807767,1706285182062,309.87605268,0.00022009,2]
[312807768,1706285182239,175.31396286,0.00022009,2]
[312807769,1706285182404,1740.92996843,0.00022009,2]
[312807770,1706285183037,167.10938198,0.00022009,2]
[312807771,1706285183437,154.98450155,0.00022009,2]
[312807772,1706285184334,21697.17964081,0.00021789,2]
[312807773,1706285184713,154.98450155,0.00022009,2]
[312807774,1706285186212,19712.13660076,0.00022009,2]
[312807775,1706285186875,154.98450155,0.00022009,2]
[312807776,1706285187013,588.69915361,0.00022008,2]
[312807777,1706285187203,522.41614365,0.00022009,2]
[312807778,1706285187818,224.88228221,0.00022009,2]
[312807779,1706285189268,261.0420914,0.00022009,2]
[312807780,1706285189316,181.08904402,0.00022009,2]
[312807781,1706285189389,904.20873701,0.00022009,2]
[312807782,1706285189511,7965.10067001,0.00022009,2]
[312807783,1706285191596,6722.36,0.00022,3]
[312807784,1706285191910,1294.07008414,0.00022009,2]
[312807786,1706285193235,35542.59015878,0.00022009,2]
[312807788,1706285194857,11887.11995614,0.00022009,2]
[312807789,1706285194884,154.98450155,0.00022009,2]
[312807790,1706285195181,18914.66367952,0.00022009,2]
[312807791,1706285197401,169.75144972,0.00022009,2]
[312807793,1706285198984,1994.67280692,0.00022009,2]
[312807794,1706285199048,166.81285268,0.00022009,2]
[312807795,1706285199465,186.80519107,0.00022009,2]
[312807796,1706285201079,500.08784332,0.00022009,2]
[312807797,1706285201321,561.94551525,0.00022009,2]
[312807798,1706285202237,175.21283928,0.00022009,2]
[312807799,1706285202728,5601.97,0.00022,3]
[312807800,1706285202981,587.93721037,0.00022009,2]
[312807801,1706285203334,180.90670681,0.00022009,2]
[312807802,1706285205280,260.8654469,0.00022009,2]
[312807803,1706285205503,7965.10067001,0.00022009,2]
[312807804,1706285206718,154.98450155,0.00022009,2]
[312807805,1706285208236,15779.16180353,0.00022009,2]
[312807806,1706285208358,21697.17964081,0.00021789,2]
[312807807,1706285209149,620.86418432,0.00022009,2]
[312807808,1706285209478,154.95351395,0.00021899,2]
[312807810,1706285210865,154.98450155,0.00022009,2]
[312807811,1706285210894,154.98450155,0.00022009,2]
[312807812,1706285211677,5353.48115531,0.00022009,2]
[312807813,1706285213389,904.20873701,0.00022009,2]
[312807814,1706285214451,4668.31,0.00022,3]
[312807816,1706285215306,561.42956124,0.00022009,2]
[312807817,1706285218869,239.13771439,0.00022009,2]
[312807818,1706285221173,260.54576637,0.00022009,2]
[312807819,1706285221508,7965.10067001,0.00022009,2]
[312807820,1706285224713,177.69940036,0.00022009,2]
[312807821,1706285225667,3890.26,0.00022,3]
[312807822,1706285228352,13773.54064229,0.00021789,2]
[312807823,1706285228869,154.98450155,0.00022009,2]
[312807824,1706285230862,154.98450155,0.00022009,2]
[312807825,1706285232864,167.11616127,0.0002191,2]
[312807826,1706285235341,204.6744,0.0002191,2]
[312807827,1706285236945,260.54576637,0.00022009,2]
[312807828,1706285237284,3241.88,0.00022,3]
[312807829,1706285238614,24900.0,0.00021265,2]
[312807830,1706285239393,904.20873701,0.00022009,2]
[312807832,1706285242247,175.26340057,0.00022009,2]
[312807833,1706285243510,545.12867146,0.00022009,2]
[312807834,1706285244863,154.98450155,0.00022009,2]
[312807835,1706285248367,2701.57,0.00022,3]
[312807837,1706285250974,227.29876211,0.00022009,2]
[312807846,1706285256943,260.54576637,0.00022009,2]
[312807847,1706285259735,2251.31,0.00022,3]
[312807848,1706285261193,910.44192301,0.00022009,2]
[312807850,1706285271495,1876.09,0.00022,3]
[312807856,1706285276940,260.54576637,0.00022009,2]
[312807861,1706285282930,1563.41,0.00022,3]
[312807863,1706285287319,260.95376915,0.00022009,2]
[312807867,1706285294335,1302.84,0.00022,3]
[312807868,1706285294435,1372.84677474,0.0002191,2]
[312807869,1706285294947,260.54576637,0.00022009,2]
[312807874,1706285304964,1085.7,0.00022,3]
[312807878,1706285310945,260.54576637,0.00022009,2]
[312807881,1706285316227,904.75,0.00022,3]
[312807882,1706285327676,753.96,0.00022,3]
[312807883,1706285328952,260.54576637,0.00022009,2]
[312807887,1706285338308,628.3,0.00022,3]
[312807890,1706285349046,523.58,0.00022,3]
[312807891,1706285350952,260.54576637,0.00022009,2]
[312807894,1706285356737,473.4243788,0.00021946,2]
[312807895,1706285359391,436.32,0.00022,3]
[312807896,1706285359939,527.01508147,0.00021945,2]
[312807897,1706285361751,154.98450155,0.00021945,2]
[312807898,1706285362009,644.80103285,0.00021945,2]
[312807899,1706285362041,1267.59443722,0.00021945,2]
[312807901,1706285363778,1580.35552907,0.00021945,2]
[312807904,1706285368989,260.54576637,0.00022009,2]
[312807906,1706285370938,363.6,0.00022003,3]
[312807907,1706285373939,527.01508147,0.00022009,2]
[312807908,1706285378040,1267.59443722,0.00022009,2]
[312807909,1706285379744,154.98450155,0.00022009,2]
[312807910,1706285379904,1580.35552907,0.00022009,2]
[312807911,1706285381995,644.80103285,0.00022009,2]
[312807912,1706285382744,303.0,0.00022003,3]
[312807915,1706285391935,527.01508147,0.00022009,2]
[312807916,1706285392310,175.26340057,0.00022009,2]
[312807917,1706285392958,260.54576637,0.00022009,2]
[312807918,1706285393377,252.5,0.00022003,3]
[312807919,1706285396030,1267.86574706,0.00022009,2]
[312807920,1706285397749,209.77378524,0.00022009,2]
[312807921,1706285398001,643.44803632,0.00022009,2]
[312807922,1706285401777,1580.35552907,0.00022009,2]
[312807923,1706285403850,210.41,0.00022003,3]
[312807925,1706285411948,525.59049258,0.00022009,2]
[312807926,1706285415044,175.34,0.00022003,3]
[312807927,1706285417382,1689.636848,0.00021946,2]
[312807928,1706285417771,1580.35552907,0.00022009,2]
[312807948,1706285432290,-595.45090393,0.0002201,2]
[312807950,1706285432300,-262.4952811,0.0002201,2]
[312807952,1706285432309,-10549.91964157,0.0002201,2]
[312807954,1706285432318,-20884.97373293,0.0002201,2]
[312807956,1706285432327,-154.98450155,0.0002201,2]
[312807958,1706285432337,-166.56732939,0.0002201,2]
[312807960,1706285432346,-179.01727218,0.0002201,2]
[312807962,1706285432356,-1198.71036477,0.0002201,2]
[312807964,1706285432365,-19877.61940859,0.0002201,2]
[312807966,1706285432374,-155.90912192,0.0002201,2]
[312807968,1706285432383,-155.24761601,0.0002201,2]
[312807970,1706285432392,-454.38571202,0.0002201,2]
[312807972,1706285432401,-625.15059201,0.0002201,2]
[312807974,1706285432410,-277.32659055,0.0002201,2]
[312807976,1706285432419,-154.98450155,0.0002201,2]
[312807978,1706285432427,-329.74860932,0.0002201,2]
[312807980,1706285432436,-309.70370755,0.0002201,2]
[312807982,1706285432445,-8766.90246597,0.0002201,2]
[312807984,1706285432454,-196.80536858,0.0002201,2]
[312807986,1706285432463,-1589.82443976,0.00022011,2]
[312807988,1706285432473,-2801.18464062,0.00022013,2]
[312807990,1706285432482,-876.75,0.00022025,3]
[312807992,1706285432491,-251.56941246,0.00022034,2]
[312807994,1706285432503,-155.00709482,0.00022035,2]
[312807996,1706285432512,-200.12495662,0.00022036,2]
[312807998,1706285432521,-1916.72029117,0.00022036,2]
[312808000,1706285432531,-309.74797528,0.00022036,2]
[312808002,1706285432540,-422.34685131,0.00022036,2]
[312808004,1706285432549,-470.95501386,0.00022047,2]
[312808006,1706285432558,-309.70578029,0.00022123,2]
[312808016,1706285432663,-688.13841462,0.00022125,2]
[312808018,1706285432673,-272.6306295,0.00022125,2]
[312808020,1706285432682,-168.87075786,0.000225,2]
[312808021,1706285432691,-159.177108,0.00022599,2]
[312808022,1706285432700,-294.70431166,0.00022622,2]
[312808023,1706285432711,-1416.35950919,0.00023,2]
[312808024,1706285432722,-9945.36507918,0.00023,2]
[312808025,1706285432732,-8004.59572248,0.00023327,2]
[312808026,1706285432741,-204.6744,0.00023611,2]
[312808027,1706285432751,-4017.08821155,0.00024,2]
[312808028,1706285432760,-200.0,0.0002421,7]
[312808029,1706285432772,-333.92612896,0.00024428,2]
[312808030,1706285432780,-243.19997644,0.0002444,2]
[312808031,1706285432790,-155.26319805,0.0002444,2]
[312808032,1706285432799,-266.53137621,0.00024563,2]
[312808033,1706285432808,-244.15508901,0.00024563,2]
[312808034,1706285432817,-202.33440322,0.00024579,2]
[312808035,1706285432826,-498.7732517,0.0002496,5]
[312808036,1706285432835,-764.62995522,0.00025,2]
[312808037,1706285432844,-240.96920724,0.00025,2]
[312808038,1706285432853,-155.79962254,0.00025,2]
[312808039,1706285432862,-235.6145717,0.00025,2]
[312808040,1706285432871,-4726.99215817,0.00025,2]
[312808041,1706285432880,-850.88910175,0.00025,2]
[312808042,1706285432890,-7387.81433972,0.00025,2]
[312808043,1706285432899,-9286.90575802,0.00025297,2]
[312808044,1706285432907,-204.6744,0.00025311,2]
[312808045,1706285432916,-151.0,0.00025359,2]
[312808046,1706285432926,-1030.12013602,0.00025359,2]
[312808047,1706285432934,-616.92156387,0.00025615,2]
[312808048,1706285432943,-155.03142201,0.00025615,2]
[312808049,1706285432953,-214.52085203,0.00025617,2]
[312808050,1706285432962,-520.27104173,0.00025649,2]
[312808051,1706285432970,-241.41988175,0.00026,2]
[312808052,1706285432979,-626.21936632,0.000264,2]
[312808053,1706285432988,-280.0,0.00026631,15]
[312808054,1706285432998,-290.6211574,0.00027,2]
[312808055,1706285433007,-204.6744,0.00027012,2]
[312808056,1706285433016,-2404.72335971,0.000275,2]
[312808057,1706285433025,-620.31096832,0.0002772,2]
[312808058,1706285433034,-200.9644788,0.000279,2]
[312808059,1706285433043,-204.6744,0.00028712,2]
[312808060,1706285433052,-1932.98612217,0.00029,2]
[312808061,1706285433061,-1000.0,0.00029,2]
[312808062,1706285433070,-620.01554842,0.00029106,2]
[312808063,1706285433079,-391.0,0.00029294,15]
[312808064,1706285433088,-520.27104173,0.00029373,2]
[312808065,1706285433098,-195.54104758,0.0003,2]
[312808066,1706285433107,-155.0,0.0003,4]
[312808067,1706285433116,-2000.24446905,0.0003004,2]
[312808068,1706285433125,-153.0,0.00030137,2]
[312808069,1706285433135,-157.3764171,0.00030137,2]
[312808070,1706285433144,-153.0,0.00030137,2]
[312808071,1706285433154,-153.0,0.00030137,2]
[312808072,1706285433163,-199.3339408,0.00030137,2]
[312808073,1706285433173,-157.76962,0.00030137,2]
[312808074,1706285433182,-204.6744,0.00030413,2]
[312808075,1706285433192,-620.00077742,0.00030561,2]
[312808076,1706285433203,-157.76962,0.00031279,2]
[312808077,1706285433213,-44891.10487956,0.00032,10]
[312808078,1706285433224,-279.88516594,0.00032,4]
[312808079,1706285433234,-1740.467493,0.00032,2]
[312808080,1706285433243,-1740.467493,0.00032,2]
[312808081,1706285433254,-151.0,0.00032,2]
[312808082,1706285433263,-151.0,0.00032,2]
[312808083,1706285433273,-151.0,0.00032,2]
[312808084,1706285433284,-232.881258,0.00032,2]
[312808085,1706285433293,-204.6744,0.00032113,2]
[312808086,1706285433303,-200.0,0.00032223,15]
[312808087,1706285433313,-348.0,0.00032223,15]
[312808088,1706285433322,-157.76962,0.0003242,2]
[312808089,1706285433332,-1689.636848,0.00032919,2]
[312808090,1706285433341,-155.0,0.00033,2]
[312808091,1706285433350,-520.27104173,0.00033096,2]
[312808092,1706285433360,-157.76962,0.00033562,2]
[312808093,1706285433369,-204.6744,0.00033814,2]
[312808094,1706285433379,-1945.26081243,0.000339,14]
[312808095,1706285433388,-157.76962,0.00034703,2]
[312808096,1706285433397,-155.00002581,0.00034999,4]
[312808097,1706285433406,-13522.40128014,0.00035,3]
[312808098,1706285433416,-155.0,0.00035,4]
[312808099,1706285433425,-238.03984192,0.00035094,2]
[312808100,1706285433434,-573.21142565,0.00035094,2]
[312808101,1706285433443,-1225.0,0.00035094,2]
[312808102,1706285433453,-200.0,0.00035446,15]
[312808103,1706285433463,-363.0,0.00035446,15]
[312808104,1706285433472,-204.6744,0.00035514,2]
[312808105,1706285433481,-500.0,0.00035616,2]
[312808106,1706285433490,-500.0,0.00035753,2]
[312808107,1706285433501,-157.76962,0.00035845,2]
[312808108,1706285433511,-500.0,0.0003589,2]
[312808109,1706285433519,-500.0,0.00036027,2]
[312808110,1706285433529,-500.0,0.00036164,2]
[312808111,1706285433538,-200.0,0.00036301,2]
[312808112,1706285433548,-500.0,0.00036391,120]
[312808113,1706285433557,-295.81535794,0.00036391,120]
[312808114,1706285433570,-204.18464206,0.00036391,120]
[312808115,1706285433579,-500.0,0.00036391,120]
[312808116,1706285433589,-500.0,0.00036391,120]
[312808117,1706285433598,-500.0,0.00036391,120]
[312808118,1706285433606,-575.32,0.00036391,120]
[312808119,1706285433616,-500.0,0.00036391,120]
[312808120,1706285433625,-1263.59535794,0.00036391,2]
[312808121,1706285433640,-476.87213506,0.00036391,2]
[312808122,1706285433649,-1740.467493,0.00036391,2]
[312808123,1706285433658,-151.0,0.00036391,2]
[312808124,1706285433667,-151.0,0.00036391,2]
[312808125,1706285433679,-864.0,0.000364,2]
[312808126,1706285433688,-200.0,0.000365,4]
[312808127,1706285433697,-520.27104173,0.0003682,2]
[312808128,1706285433706,-2370.77484337,0.00036918,2]
[312808129,1706285433715,-555.7243333,0.00036918,4]
[312808130,1706285433726,-1740.467493,0.0003692,2]
[312808131,1706285433735,-1740.467493,0.0003692,2]
[312808132,1706285433744,-151.0,0.0003692,2]
[312808133,1706285433755,-151.0,0.0003692,2]
[312808134,1706285433764,-157.76962,0.00036986,2]
[312808135,1706285433773,-150.98490151,0.00037014,2]
[312808136,1706285433782,-250.46583342,0.00037014,2]
[312808137,1706285433790,-1000.0,0.00037069,2]
[312808138,1706285433800,-1000.0,0.00037078,2]
[312808139,1706285433809,-1000.0,0.0003708,2]
[312808140,1706285433818,-156.25453846,0.00037098,2]
[312808141,1706285433827,-1000.0,0.00037111,2]
[312808142,1706285433836,-1000.0,0.00037118,2]
[312808143,1706285433846,-5000.0,0.00037119,7]
[312808144,1706285433855,-300.40206867,0.00037123,2]
[312808145,1706285433864,-399.05598454,0.00037129,2]
[312808146,1706285433872,-1000.0,0.0003713,2]
[312808147,1706285433881,-1127.21627413,0.00037144,3]
[312808148,1706285433890,-1000.0,0.00037144,2]
[312808149,1706285433899,-1000.0,0.00037149,2]
[312808150,1706285433908,-1000.0,0.00037157,2]
[312808151,1706285433917,-1000.0,0.00037164,2]
[312808152,1706285433925,-1000.0,0.00037194,2]
[312808153,1706285433934,-4000.0,0.000372,30]
[312808154,1706285433945,-1000.0,0.00037203,2]
[312808155,1706285433953,-1000.0,0.00037214,2]
[312808156,1706285433963,-204.6744,0.00037215,2]
[312808157,1706285433972,-1000.0,0.00037239,2]
[312808158,1706285433981,-1000.0,0.00037273,2]
[312808159,1706285433989,-1091.26733466,0.00037276,4]
[312808160,1706285433998,-1000.0,0.00037291,2]
[312808161,1706285434007,-300.0,0.000373,19]
[312808162,1706285434017,-1740.467493,0.000373,2]
[312808163,1706285434025,-1740.467493,0.000373,2]
[312808164,1706285434034,-151.0,0.000373,2]
[312808165,1706285434043,-151.0,0.000373,2]
[312808166,1706285434052,-5000.0,0.00037307,3]
[312808167,1706285434061,-1055.41290667,0.00037308,23]
[312808168,1706285434070,-309.95343036,0.00037313,4]
[312808169,1706285434078,-10842.89163921,0.00037315,2]
[312808170,1706285434087,-5000.0,0.00037315,7]
[312808171,1706285434096,-4248.99438098,0.00037315,2]
[312808172,1706285434105,-5000.0,0.00037315,7]
[312808173,1706285434114,-25668.07696629,0.00037315,4]
[312808174,1706285434123,-5000.0,0.00037315,7]
[312808175,1706285434133,-6858.31131497,0.00037315,4]
[312808176,1706285434142,-5000.0,0.00037315,7]
[312808177,1706285434152,-6459.62173829,0.00037315,4]
[312808178,1706285434161,-5000.0,0.00037315,7]
[312808179,1706285434170,-1740.467493,0.00037315,2]
[312808180,1706285434180,-1740.467493,0.00037315,2]
[312808181,1706285434190,-1740.467493,0.00037315,2]
[312808182,1706285434199,-1740.467493,0.00037315,2]
[312808183,1706285434209,-5000.0,0.00037315,7]
[312808184,1706285434219,-151.0,0.00037315,2]
[312808185,1706285434228,-151.0,0.00037315,2]
[312808186,1706285434238,-151.0,0.00037315,2]
[312808187,1706285434248,-151.0,0.00037315,2]
[312808188,1706285434257,-1000.0,0.00037334,2]
[312808189,1706285434266,-200.18892638,0.00037336,4]
[312808190,1706285434276,-155.05876857,0.00037336,2]
[312808191,1706285434285,-310.93139628,0.00037337,4]
[312808192,1706285434294,-155.12462204,0.00037338,4]
[312808193,1706285434304,-9696.49812553,0.00037391,3]
[312808194,1706285434313,-1740.467493,0.00037391,2]
[312808195,1706285434322,-1740.467493,0.00037391,2]
[312808196,1706285434331,-151.0,0.00037391,2]
[312808197,1706285434340,-237.67005,0.00037391,2]
[312808198,1706285434349,-309.72125088,0.00037502,4]
[312808199,1706285434359,-469.36747872,0.00037504,20]
[312808200,1706285434368,-170.98714659,0.00037504,4]
[312808201,1706285434378,-309.72125088,0.00037504,4]
[312808202,1706285434388,-309.72125088,0.00037504,4]
[312808203,1706285434397,-165.0,0.00037515,2]
[312808204,1706285434406,-203.505,0.00037515,2]
[312808205,1706285434415,-301.96980302,0.00037636,4]
[312808206,1706285434424,-7949.15187404,0.00038,3]
[312808207,1706285434433,-150.0,0.00038098,2]
[312808208,1706285434443,-157.76962,0.00038128,2]
[312808209,1706285434452,-352.08091364,0.00038191,14]
[312808210,1706285434461,-477.98885301,0.00038191,4]
[312808211,1706285434469,-154.90705577,0.00038191,4]
[312808212,1706285434478,-603.93960604,0.00038268,7]
[312808213,1706285434487,-2142.39328841,0.000385,4]
[312808214,1706285434498,-300.0,0.000388,20]
[312808215,1706285434506,-27739.25208613,0.00038836,7]
[312808274,1706285438399,-15534.9296292,0.00037315,2]
[312808275,1706285438409,-345.58592474,0.00038835,4]
[312808276,1706285438420,-339.17775966,0.00038835,4]
[312808277,1706285438430,-4353.35328412,0.00038835,4]
[312808278,1706285438518,-42783.75340161,0.00038835,4]
[312808280,1706285438528,-22260.74791387,0.00038836,7]
[312808281,1706285438538,-1740.467493,0.00038836,2]
[312808282,1706285438547,-1740.467493,0.00038836,2]
[312808283,1706285438557,-151.0,0.00038836,2]
[312808284,1706285438566,-166.97722228,0.00038912,4]
[312808285,1706285438575,-3000.0,0.00039,120]
[312808286,1706285438584,-1500.0,0.00039,2]
[312808287,1706285438593,-1500.0,0.00039,2]
[312808288,1706285438602,-1500.0,0.00039,2]
[312808289,1706285438612,-1500.0,0.00039,2]
[312808290,1706285438622,-1500.0,0.00039,2]
[312808291,1706285438632,-1631.91,0.00039,2]
[312808292,1706285438642,-5000.0,0.0003902,7]
[312808293,1706285438653,-150.0,0.00039098,2]
[312808294,1706285438662,-1207.87921208,0.00039237,30]
[312808295,1706285438671,-157.76962,0.00039269,2]
[312808296,1706285438680,-1000.0,0.00039497,10]
[312808297,1706285438689,-352.5185957,0.000395,14]
[312808298,1706285438698,-50000.0,0.00039592,7]
[312808299,1706285438707,-1740.467493,0.00039592,2]
[312808300,1706285438717,-1740.467493,0.00039592,2]
[312808301,1706285438727,-151.0,0.00039592,2]
[312808302,1706285438736,-300.0,0.000397,7]
[312808303,1706285438745,-5000.0,0.00039789,7]
[312808304,1706285438756,-10439.78504856,0.000399,2]
[312808305,1706285438765,-1816.62824705,0.0004,30]
[312808306,1706285438773,-253.19198089,0.0004,120]
[312808307,1706285438783,-2926.56901919,0.0004,2]
[312808308,1706285438792,-34240.29584099,0.0004,120]
[312808309,1706285438801,-1358.63105245,0.0004,10]
[312808310,1706285438810,-2061.12147888,0.0004,2]
[312808311,1706285438819,-1409.33194687,0.0004,4]
[312808312,1706285438828,-150.0,0.0004,7]
[312808313,1706285438837,-1740.467493,0.0004,2]
[312808314,1706285438846,-1740.467502,0.0004,2]
[312808315,1706285438855,-151.0,0.0004,2]
[312808316,1706285438864,-155.0,0.0004,2]
[312808317,1706285438873,-300.0,0.000403,21]